fUSD/lending_fUSD_20260622
["ID","MTS","AMOUNT","RATE_DAILY","PERIOD"]
[425969572,1782060640000,-618.62,0.00019585,2]
[425969581,1782060640000,-152.0,0.0002,2]
[425969579,1782060640000,-271.17228116,0.00019999,2]
[425969582,1782060640000,-282.0,0.0002,2]
[425969577,1782060640000,-200.15,0.0001999,3]
[425969583,1782060640000,-190.66868644,0.0002,2]
[425969592,1782060640000,-135597.63,0.0002,2]
[425969585,1782060640000,-190.66868644,0.0002,2]
[425969588,1782060640000,-545.0,0.0002,2]
[425969586,1782060640000,-190.66868644,0.0002,2]
[425969596,1782060640000,-152.4182235,0.00020123,2]
[425969584,1782060640000,-190.66868644,0.0002,2]
[425969589,1782060640000,-152.0,0.0002,2]
[425969594,1782060640000,-166.0,0.0002,2]
[425969593,1782060640000,-520.0,0.0002,2]
[425969590,1782060640000,-400.0,0.0002,2]
[425969591,1782060640000,-369.0,0.0002,2]
[425969573,1782060640000,-555.22000029,0.0001978,2]
[425969595,1782060640000,-156.39200973,0.00020123,2]
[425969571,1782060640000,-2005.9555727,0.00019575,2]
[425969550,1782060640000,-166.66,0.00017241,2]
[425969569,1782060640000,-409.83678616,0.000194,2]
[425969545,1782060640000,-1533.88533171,0.00016835,2]
[425969544,1782060640000,-151.0,0.00011526,2]
[425969546,1782060640000,-166.66,0.00016893,2]
[425969547,1782060640000,-318.0,0.00017093,2]
[425969548,1782060640000,-718.27412176,0.00017168,2]
[425969557,1782060640000,-350.0,0.00018,2]
[425969549,1782060640000,-200.0,0.00017182,2]
[425969597,1782060640000,-151.0,0.00020123,2]
[425969551,1782060640000,-1734.62772924,0.00017383,2]
[425969555,1782060640000,-1798.80895522,0.00017931,2]
[425969554,1782060640000,-166.66,0.00017589,2]
[425969553,1782060640000,-767.20276073,0.00017531,2]
[425969552,1782060640000,-618.62,0.00017409,2]
[425969556,1782060640000,-166.66,0.00017937,2]
[425969558,1782060640000,-154.43207842,0.0001805,2]
[425969570,1782060640000,-1000.0,0.00019503,2]
[425969560,1782060640000,-1865.36488656,0.00018479,2]
[425969565,1782060640000,-409.83678616,0.000189,2]
[425969559,1782060640000,-166.66,0.00018286,2]
[425969563,1782060640000,-500.0,0.00018599,2]
[425969564,1782060640000,-409.83678616,0.000187,2]
[425969561,1782060640000,-232.88,0.00018484,2]
[425969568,1782060640000,-409.83678616,0.000192,2]
[425969562,1782060640000,-150.0,0.000185,7]
[425969567,1782060640000,-409.83678616,0.000191,2]
[425969566,1782060640000,-1934.38338736,0.00019027,2]
[425969599,1782060640000,-151.0,0.00020123,2]
[425969587,1782060640000,-190.66868648,0.0002,2]
[425969607,1782060640000,-151.0,0.00020123,2]
[425969627,1782060640000,-151.0,0.00020123,2]
[425969626,1782060640000,-151.0,0.00020123,2]
[425969632,1782060640000,-2500.0,0.0002022,2]
[425969636,1782060640000,-150.0,0.0002058,2]
[425969630,1782060640000,-151.0,0.00020123,2]
[425969633,1782060640000,-150.0,0.0002058,2]
[425969634,1782060640000,-150.0,0.0002058,2]
[425969631,1782060640000,-151.0,0.00020123,2]
[425969638,1782060640000,-152.4182235,0.00020671,2]
[425969648,1782060640000,-369.0,0.00021,2]
[425969639,1782060640000,-181.08010149,0.00020671,2]
[425969647,1782060640000,-152.0,0.00021,2]
[425969640,1782060640000,-225.62369024,0.00020671,2]
[425969641,1782060640000,-2157.14243826,0.00020671,2]
[425969644,1782060640000,-153.0,0.00021,2]
[425969642,1782060640000,-2391.70349025,0.000207,2]
[425969645,1782060640000,-282.0,0.00021,2]
[425969646,1782060640000,-545.0,0.00021,2]
[425969643,1782060640000,-500.0,0.00020817,2]
[425969650,1782060640000,-166.0,0.00021,2]
[425969651,1782060640000,-2881.18485983,0.00021119,2]
[425969652,1782060640000,-477.2524228,0.00021211,2]
[425969653,1782060640000,-500.0,0.00021212,2]
[425969654,1782060640000,-500.0,0.00021212,2]
[425969603,1782060640000,-151.0,0.00020123,2]
[425969628,1782060640000,-151.0,0.00020123,2]
[425969637,1782060640000,-187.42159584,0.0002058,2]
[425969649,1782060640000,-520.0,0.00021,2]
[425969635,1782060640000,-150.0,0.0002058,2]
[425969598,1782060640000,-151.0,0.00020123,2]
[425969629,1782060640000,-151.0,0.00020123,2]
[425969608,1782060640000,-225.62369024,0.00020123,2]
[425969600,1782060640000,-151.0,0.00020123,2]
[425969606,1782060640000,-151.0,0.00020123,2]
[425969609,1782060640000,-151.0,0.00020123,2]
[425969601,1782060640000,-174.61919141,0.00020123,2]
[425969602,1782060640000,-151.0,0.00020123,2]
[425969604,1782060640000,-578.20924308,0.00020123,2]
[425969611,1782060640000,-151.0,0.00020123,2]
[425969622,1782060640000,-151.0,0.00020123,2]
[425969623,1782060640000,-151.0,0.00020123,2]
[425969621,1782060640000,-151.0,0.00020123,2]
[425969605,1782060640000,-151.0,0.00020123,2]
[425969625,1782060640000,-151.0,0.00020123,2]
[425969624,1782060640000,-151.0,0.00020123,2]
[425969613,1782060640000,-151.0,0.00020123,2]
[425969618,1782060640000,-151.0,0.00020123,2]
[425969619,1782060640000,-151.0,0.00020123,2]
[425969620,1782060640000,-151.0,0.00020123,2]
[425969617,1782060640000,-151.0,0.00020123,2]
[425969615,1782060640000,-151.0,0.00020123,2]
[425969614,1782060640000,-151.0,0.00020123,2]
[425969610,1782060640000,-151.0,0.00020123,2]
[425969612,1782060640000,-2080.17592889,0.00020123,2]
[425969616,1782060640000,-151.0,0.00020123,2]
[425969704,1782060641000,-166.0,0.00022,2]
[425969692,1782060641000,-200.0,0.00021918,2]
[425969695,1782060641000,-282.0,0.00022,2]
[425969706,1782060641000,-1526.89,0.00022076,2]
[425969705,1782060641000,-200.0,0.00022027,2]
[425969689,1782060641000,-159.11633035,0.000219,2]
[425969681,1782060641000,-500.0,0.00021607,2]
[425969687,1782060641000,-2319.72410669,0.00021767,2]
[425969685,1782060641000,-166.29628542,0.00021767,2]
[425969682,1782060641000,-30412.4,0.00021608,2]
[425969694,1782060641000,-200.0,0.00021918,2]
[425969693,1782060641000,-200.0,0.00021918,2]
[425969698,1782060641000,-450.0,0.00022,2]
[425969715,1782060641000,-2140.35894468,0.00022407,2]
[425969697,1782060641000,-164.0,0.00022,2]
[425969696,1782060641000,-545.0,0.00022,2]
[425969702,1782060641000,-520.0,0.00022,2]
[425969700,1782060641000,-5214.72,0.00022,2]
[425969707,1782060641000,-2881.1848598,0.00022105,2]
[425969713,1782060641000,-2140.35894468,0.00022407,2]
[425969712,1782060641000,-2405.55389863,0.00022315,2]
[425969708,1782060641000,-480.73832786,0.00022187,2]
[425969710,1782060641000,-152.4182235,0.00022315,2]
[425969714,1782060641000,-2140.35894468,0.00022407,2]
[425969716,1782060641000,-150.0,0.000227,14]
[425969680,1782060641000,-500.0,0.00021607,2]
[425969699,1782060641000,-369.0,0.00022,2]
[425969683,1782060641000,-618.62,0.00021761,2]
[425969660,1782060641000,-225.62369024,0.00021219,2]
[425969686,1782060641000,-225.62369024,0.00021767,2]
[425969711,1782060641000,-225.62369024,0.00022315,2]
[425969662,1782060641000,-3560.0,0.00021312,2]
[425969659,1782060641000,-187.78006524,0.00021219,2]
[425969658,1782060641000,-152.4182235,0.00021219,2]
[425969656,1782060641000,-500.0,0.00021212,2]
[425969657,1782060641000,-41967.8812,0.00021212,2]
[425969655,1782060641000,-500.0,0.00021212,2]
[425969663,1782060641000,-1364.702,0.00021312,2]
[425969661,1782060641000,-2236.95670847,0.00021219,2]
[425969675,1782060641000,-271.866889,0.00021479,2]
[425969676,1782060641000,-2391.70349025,0.000215,2]
[425969665,1782060641000,-1287.027,0.00021312,2]
[425969664,1782060641000,-383.0,0.00021312,2]
[425969668,1782060641000,-150.199,0.00021312,2]
[425969667,1782060641000,-6081.0,0.00021312,2]
[425969666,1782060641000,-250.0,0.00021312,2]
[425969669,1782060641000,-215.0,0.00021312,2]
[425969672,1782060641000,-400.3,0.0002136,3]
[425969671,1782060641000,-800.6,0.0002136,3]
[425969673,1782060641000,-6500.86,0.0002137,2]
[425969670,1782060641000,-427.28,0.0002136,3]
[425969674,1782060641000,-172.53233442,0.0002137,2]
[425969677,1782060641000,-167.61,0.00021541,2]
[425969678,1782060641000,-500.0,0.00021607,2]
[425969688,1782060641000,-316.0,0.000218,2]
[425969691,1782060641000,-173.87300163,0.00021918,2]
[425969690,1782060641000,-5000.0,0.00021918,2]
[425969684,1782060641000,-152.4182235,0.00021767,2]
[425969709,1782060641000,-2391.70349025,0.000223,2]
[425969743,1782060641000,-2881.1848598,0.00024077,2]
[425969719,1782060641000,-152.4182235,0.00022863,2]
[425969747,1782060641000,-1360.0,0.00024312,2]
[425969757,1782060641000,-173.98,0.00024658,2]
[425969750,1782060641000,-6081.0,0.00024312,2]
[425969753,1782060641000,-300.0,0.00024469,7]
[425969748,1782060641000,-383.0,0.00024312,2]
[425969752,1782060641000,-151.0,0.00024324,2]
[425969751,1782060641000,-215.0,0.00024312,2]
[425969749,1782060641000,-1276.0,0.00024312,2]
[425969758,1782060641000,-555.22000029,0.00024684,2]
[425969760,1782060641000,-1345.829,0.00024709,7]
[425969762,1782060641000,-1983.0,0.00024786,3]
[425969759,1782060641000,-2391.70349025,0.000247,2]
[425969745,1782060641000,-200.0,0.00024288,2]
[425969761,1782060641000,-197.416,0.00024709,7]
[425969766,1782060641000,-6281.91,0.0002498,2]
[425969773,1782060641000,-381.0,0.00025,2]
[425969770,1782060641000,-288.0,0.00025,2]
[425969772,1782060641000,-549.0,0.00025,2]
[425969768,1782060641000,-9999.99,0.0002498,2]
[425969764,1782060641000,-513.12133167,0.00024803,7]
[425969765,1782060641000,-905.20685127,0.00024803,7]
[425969774,1782060641000,-524.0,0.00025,2]
[425969775,1782060641000,-171.0,0.00025,2]
[425969779,1782060641000,-225.62369024,0.00025055,2]
[425969781,1782060641000,-2881.1848598,0.00025063,2]
[425969783,1782060641000,-1354.13531264,0.00025303,14]
[425969763,1782060641000,-194.43662576,0.00024803,7]
[425969755,1782060641000,-482.43,0.0002461,2]
[425969777,1782060641000,-200.0,0.00025042,2]
[425969746,1782060641000,-3560.0,0.00024312,2]
[425969756,1782060641000,-1000.0,0.00024658,2]
[425969718,1782060641000,-599.60298507,0.00022862,2]
[425969721,1782060641000,-686.95556174,0.00022863,2]
[425969731,1782060641000,-225.62369024,0.00023411,2]
[425969722,1782060641000,-282.0,0.00023,2]
[425969720,1782060641000,-225.62369024,0.00022863,2]
[425969723,1782060641000,-545.0,0.00023,2]
[425969725,1782060641000,-369.0,0.00023,2]
[425969728,1782060641000,-2881.1848598,0.00023091,2]
[425969726,1782060641000,-520.0,0.00023,2]
[425969727,1782060641000,-166.0,0.00023,2]
[425969729,1782060641000,-2391.70349025,0.000231,2]
[425969724,1782060641000,-942.0,0.00023,2]
[425969730,1782060641000,-152.41822358,0.00023411,2]
[425969717,1782060641000,-200.0,0.00022781,2]
[425969744,1782060641000,-11222.09,0.00024174,2]
[425969733,1782060641000,-1409.0,0.0002375,5]
[425969739,1782060641000,-500.0,0.00024,2]
[425969741,1782060641000,-520.0,0.00024,2]
[425969754,1782060641000,-225.62369024,0.00024507,2]
[425969740,1782060641000,-369.0,0.00024,2]
[425969737,1782060641000,-282.0,0.00024,2]
[425969736,1782060641000,-225.62369024,0.00023959,2]
[425969742,1782060641000,-166.0,0.00024,2]
[425969732,1782060641000,-200.0,0.00023534,2]
[425969734,1782060641000,-2391.70349025,0.000239,2]
[425969735,1782060641000,-618.62,0.00023937,2]
[425969785,1782060641000,-1832.193,0.00025303,14]
[425969738,1782060641000,-545.0,0.00024,2]
[425969804,1782060642000,-550.0,0.00026,2]
[425969806,1782060642000,-2881.1848598,0.00026049,2]
[425969826,1782060642000,-2137.4874307,0.00026196,2]
[425969818,1782060642000,-500.0,0.00026195,2]
[425969791,1782060642000,-500.0,0.00025553,7]
[425969795,1782060642000,-225.62369041,0.00025603,2]
[425969802,1782060642000,-200.0,0.00025796,2]
[425969789,1782060642000,-2391.70349025,0.000255,2]
[425969798,1782060642000,-2975.0,0.00025777,3]
[425969800,1782060642000,-11222.09,0.00025786,2]
[425969822,1782060642000,-179.38868994,0.00026196,5]
[425969793,1782060642000,-234.01686782,0.00025601,2]
[425969787,1782060642000,-396.28,0.00025438,2]
[425969813,1782060642000,-197.38559888,0.00026135,2]
[425969820,1782060642000,-468.11657277,0.00026195,2]
[425969815,1782060642000,-498.55408613,0.0002619,2]
[425969811,1782060642000,-1981.46305983,0.00026135,2]
[425969848,1782060642000,-636.73599545,0.00026199,2]
[425969838,1782060642000,-500.0,0.00026199,2]
[425969836,1782060642000,-500.0,0.00026199,2]
[425969834,1782060642000,-500.0,0.00026199,2]
[425969850,1782060642000,-1306052.30979987,0.000262,4]
[425969844,1782060642000,-500.0,0.00026199,2]
[425969824,1782060642000,-228.76419943,0.00026196,2]
[425969840,1782060642000,-3000.0,0.00026199,3]
[425969842,1782060642000,-300.0,0.00026199,7]
[425969831,1782060642000,-500.0,0.00026199,2]
[425969829,1782060642000,-500.0,0.00026199,2]
[425969828,1782060642000,-179.38920481,0.00026196,2]
[425969847,1782060642000,-500.0,0.00026199,2]
[425969809,1782060642000,-618.62,0.00026113,2]
[425969961,1782060643000,-1285.64047118,0.0001848,2]
[425969963,1782060643000,-166.632024,0.0002429,14]
[425969962,1782060643000,-928.19952882,0.0001848,2]
[425969965,1782060643000,-1002.63636346,0.000262,4]
[425969964,1782060643000,-330646.6617584,0.000262,4]
[425969966,1782060643000,-7018.74497669,0.000262,4]
[425969980,1782060643000,-499.74473986,0.00019999,2]
[425969967,1782060643000,-364.0800082,0.000262,4]
[425969983,1782060646000,-941.121,0.00021312,2]
[425969982,1782060646000,-0.25526014,0.00019999,2]
[425969984,1782060646000,-600.0,0.00025005,30]
[425969989,1782060646000,-500.0,0.00026199,2]
[425969988,1782060646000,-500.0,0.00026199,2]
[425969985,1782060646000,-500.0,0.00025785,2]
[425969987,1782060646000,-500.0,0.00026199,2]
[425969990,1782060646000,-500.0,0.00026199,2]
[425969991,1782060646000,-500.0,0.00026199,2]
[425969992,1782060646000,-500.0,0.00026199,2]
[425969986,1782060646000,-500.0,0.00026199,2]
[425969993,1782060646000,-10337.1466946,0.000262,4]
[425970057,1782060732000,166.66,0.0002193,30]
[425970058,1782060751000,150.0,0.0002967,120]
[425970060,1782060880000,1000.0,8e-05,2]
[425970062,1782060933000,-152.0,0.00011663,2]
[425970063,1782060985000,-278.23164069,0.00011663,2]
[425970064,1782061039000,-151.0,0.00011663,2]
[425970067,1782061069000,1001.0,0.00029041,120]
[425970068,1782061093000,-152.0,0.00011663,2]
[425970069,1782061146000,-500.0,0.00011662,2]
[425970070,1782061200000,-150.0,0.00011662,2]
[425970071,1782061208000,7878.860853,7.945e-05,2]
[425970072,1782061253000,-357.08486369,0.00011661,2]
[425970073,1782061307000,-211.894382,0.00011602,2]
[425970074,1782061342000,150.0,0.00030136,120]
[425970075,1782061361000,-151.0,0.00011602,2]
[425970076,1782061414000,-151.0,0.00011602,2]
[425970080,1782061565000,-1089.05,0.00011545,2]
[425970081,1782061583000,-150.0,0.00011498,2]
[425970085,1782061611000,-8.75289806,0.00011544,2]
[425970083,1782061611000,-150.0,0.00011535,2]
[425970082,1782061611000,-50.0,0.00011498,2]
[425970084,1782061611000,-150.0,0.00011544,2]
[425970086,1782061634000,-151.0,0.0001153,2]
[425970088,1782061687000,-151.0,0.00011533,2]
[425970089,1782061741000,-150.0,0.00011387,2]
[425970095,1782061771000,-151.0,0.00011387,2]
[425970094,1782061771000,-151.0,0.00011387,2]
[425970092,1782061771000,-150.0,0.00011387,2]
[425970093,1782061771000,-151.0,0.00011387,2]
[425970091,1782061771000,-150.0,0.00011387,2]
[425970090,1782061771000,-166.65,0.00011012,2]
[425970097,1782061779000,166.66,0.00011313,2]
[425970096,1782061779000,172.53233442,0.00011387,2]
[425970098,1782061794000,-500.0,0.00011533,2]
[425970099,1782061795000,-2757.10828895,0.00011499,2]
[425970105,1782061832000,-314.69518012,0.00011499,2]
[425970106,1782061832000,-1678.50759538,0.00011499,2]
[425970110,1782061832000,-500.0,0.00011533,2]
[425970108,1782061832000,-500.0,0.00011533,2]
[425970109,1782061832000,-500.0,0.00011533,2]
[425970107,1782061832000,-9198.73649564,0.00011499,2]
[425970111,1782061832000,-500.0,0.00011533,2]
[425970112,1782061832000,-500.0,0.00011533,2]
[425970121,1782061832000,-250.0,0.00011537,2]
[425970113,1782061832000,-398.92089052,0.00011533,2]
[425970115,1782061832000,-150.0,0.00011533,2]
[425970119,1782061832000,-150.0,0.00011534,2]
[425970117,1782061832000,-153.0,0.00011533,2]
[425970114,1782061832000,-500.0,0.00011533,2]
[425970120,1782061832000,-151.0,0.00011535,2]
[425970118,1782061832000,-247.5,0.00011534,2]
[425970122,1782061832000,-142.24710194,0.00011544,2]
[425970116,1782061832000,-150.0,0.00011533,2]
[425970123,1782061833000,-437.84,0.00011545,2]
[425970124,1782061833000,-5383.56811517,0.00011545,2]
[425970125,1782061833000,-458.98603495,0.00011545,2]
[425970126,1782061833000,-287.06431718,0.00011545,2]
[425970393,1782061848000,187.95,0.00010647,2]
[425970392,1782061848000,-971.29331867,0.00011545,2]
[425970400,1782061849000,-19.72400989,0.00010932,2]
[425970394,1782061849000,520.72,0.00010924,2]
[425970395,1782061849000,350.36312299,0.00010925,2]
[425970397,1782061849000,-478.58598953,0.00010926,2]
[425970396,1782061849000,-170.35687701,0.00010925,2]
[425970398,1782061849000,-42.13401047,0.00010926,2]
[425970399,1782061849000,-520.72,0.00010928,2]
[425970409,1782061849000,-1130368.77554762,0.00011572,2]
[425970401,1782061849000,-500.99599011,0.00010932,2]
[425970407,1782061849000,-560.31805253,0.00011562,2]
[425970408,1782061849000,-4168.41444598,0.00011572,2]
[425970405,1782061849000,-166.66,0.00011551,2]
[425970403,1782061849000,-2899.07821403,0.00011545,2]
[425970406,1782061849000,-9999.99,0.00011551,2]
[425970404,1782061849000,-642.76,0.00011545,2]
[425970402,1782061849000,-520.72,0.00010936,2]
[425970433,1782061850000,-1000.0,0.00011661,2]
[425970430,1782061850000,-166.65,0.00011618,2]
[425970431,1782061850000,-171.25,0.00011647,2]
[425970434,1782061850000,-1000.0,0.00011661,2]
[425970435,1782061850000,-1000.0,0.00011661,2]
[425970436,1782061850000,-1000.0,0.00011661,2]
[425970437,1782061850000,-1000.0,0.00011661,2]
[425970439,1782061850000,-1000.0,0.00011661,2]
[425970438,1782061850000,-1000.0,0.00011661,2]
[425970442,1782061850000,-1000.0,0.00011661,2]
[425970428,1782061850000,-152.0,0.00011602,2]
[425970443,1782061850000,-1000.0,0.00011661,2]
[425970440,1782061850000,-1000.0,0.00011661,2]
[425970446,1782061850000,-1000.0,0.00011661,2]
[425970447,1782061850000,-1000.0,0.00011661,2]
[425970445,1782061850000,-1000.0,0.00011661,2]
[425970448,1782061850000,-1000.0,0.00011661,2]
[425970444,1782061850000,-1000.0,0.00011661,2]
[425970429,1782061850000,-151.0,0.00011602,2]
[425970421,1782061850000,-150.0,0.00011602,2]
[425970426,1782061850000,-150.0,0.00011602,2]
[425970441,1782061850000,-1000.0,0.00011661,2]
[425970412,1782061850000,-12731.59267084,0.00011572,2]
[425970410,1782061850000,-520.72,0.00010941,2]
[425970414,1782061850000,-333332.62605683,0.00011572,2]
[425970413,1782061850000,-19398.59127873,0.00011572,2]
[425970411,1782061850000,-520.72,0.00010948,2]
[425970415,1782061850000,-249.95940459,0.00011599,2]
[425970417,1782061850000,-151.0,0.00011601,2]
[425970425,1782061850000,-151.0,0.00011602,2]
[425970424,1782061850000,-150.0,0.00011602,2]
[425970420,1782061850000,-152.0,0.00011601,2]
[425970419,1782061850000,-151.0,0.00011601,2]
[425970418,1782061850000,-151.0,0.00011601,2]
[425970416,1782061850000,-151.0,0.00011601,2]
[425970422,1782061850000,-151.0,0.00011602,2]
[425970423,1782061850000,-150.0,0.00011602,2]
[425970427,1782061850000,-151.0,0.00011602,2]
[425970432,1782061850000,-150.0,0.0001166,2]
[425970450,1782061850000,-1000.0,0.00011661,2]
[425970459,1782061850000,-1000.0,0.00011661,2]
[425970452,1782061850000,-1000.0,0.00011661,2]
[425970472,1782061850000,-150.0,0.00011663,2]
[425970471,1782061850000,-151.0,0.00011663,2]
[425970476,1782061850000,-153.0,0.00011663,2]
[425970478,1782061850000,-150.0,0.00011663,2]
[425970473,1782061850000,-151.0,0.00011663,2]
[425970477,1782061850000,-150.0,0.00011663,2]
[425970489,1782061850000,-171.0,0.00011789,2]
[425970481,1782061850000,-151.0,0.00011664,2]
[425970480,1782061850000,-151.0,0.00011664,2]
[425970488,1782061850000,-166.66,0.00011789,2]
[425970487,1782061850000,-151.0,0.000117,2]
[425970485,1782061850000,-151.0,0.00011672,2]
[425970482,1782061850000,-150.0,0.00011665,2]
[425970483,1782061850000,-151.0,0.00011665,2]
[425970486,1782061850000,-331.65,0.00011681,2]
[425970484,1782061850000,-477.2524228,0.00011671,2]
[425970449,1782061850000,-1000.0,0.00011661,2]
[425970475,1782061850000,-151.0,0.00011663,2]
[425970474,1782061850000,-151.0,0.00011663,2]
[425970479,1782061850000,-150.0,0.00011663,2]
[425970470,1782061850000,-150.0,0.00011663,2]
[425970451,1782061850000,-1000.0,0.00011661,2]
[425970469,1782061850000,-150.0,0.00011662,2]
[425970453,1782061850000,-1000.0,0.00011661,2]
[425970455,1782061850000,-1000.0,0.00011661,2]
[425970454,1782061850000,-1000.0,0.00011661,2]
[425970458,1782061850000,-1000.0,0.00011661,2]
[425970457,1782061850000,-1000.0,0.00011661,2]
[425970460,1782061850000,-1000.0,0.00011661,2]
[425970456,1782061850000,-1000.0,0.00011661,2]
[425970464,1782061850000,-500.0,0.00011661,2]
[425970461,1782061850000,-151.0,0.00011661,2]
[425970465,1782061850000,-151.0,0.00011662,2]
[425970462,1782061850000,-152.0,0.00011661,2]
[425970466,1782061850000,-151.0,0.00011662,2]
[425970463,1782061850000,-151.0,0.00011661,2]
[425970490,1782061850000,-200.0,0.000118,4]
[425970467,1782061850000,-153.0,0.00011662,2]
[425970468,1782061850000,-150.0,0.00011662,2]
[425970525,1782061851000,-2500.0,0.00013498,2]
[425970528,1782061851000,-1364.17276221,0.00013529,2]
[425970523,1782061851000,-187.95,0.00013308,2]
[425970527,1782061851000,-16721.7612744,0.00013499,2]
[425970519,1782061851000,-150.0,0.00013207,2]
[425970521,1782061851000,-150.0,0.00013207,2]
[425970518,1782061851000,-152.0,0.00013206,2]
[425970526,1782061851000,-33314.5604,0.00013498,2]
[425970520,1782061851000,-152.0,0.00013207,2]
[425970524,1782061851000,-13949.04756009,0.00013366,2]
[425970529,1782061851000,-173.24479151,0.0001353,2]
[425970540,1782061851000,-500.0,0.00013698,2]
[425970532,1782061851000,-500.0,0.00013698,2]
[425970531,1782061851000,-500.0,0.00013698,2]
[425970533,1782061851000,-500.0,0.00013698,2]
[425970534,1782061851000,-500.0,0.00013698,2]
[425970535,1782061851000,-516.50658235,0.00013698,2]
[425970537,1782061851000,-500.0,0.00013698,2]
[425970538,1782061851000,-500.0,0.00013698,2]
[425970543,1782061851000,-239.81929128,0.00013698,2]
[425970544,1782061851000,-500.0,0.00013698,2]
[425970542,1782061851000,-500.0,0.00013698,2]
[425970515,1782061851000,-171.25,0.00013102,2]
[425970530,1782061851000,-2881.18485983,0.00013598,2]
[425970517,1782061851000,-480.32,0.00013113,2]
[425970499,1782061851000,-150.0,0.00012255,2]
[425970513,1782061851000,-166.65,0.00012829,2]
[425970491,1782061851000,-153.0,0.0001181,2]
[425970495,1782061851000,-187.95,0.00011978,2]
[425970492,1782061851000,-400.0,0.000119,4]
[425970498,1782061851000,-166.65,0.00012223,2]
[425970494,1782061851000,-442.85529746,0.00011935,2]
[425970497,1782061851000,-480.32,0.00012219,2]
[425970493,1782061851000,-480.32,0.00011921,2]
[425970541,1782061851000,-500.0,0.00013698,2]
[425970500,1782061851000,-166.66,0.00012265,2]
[425970496,1782061851000,-166.66,0.00012027,2]
[425970503,1782061851000,-166.66,0.00012503,2]
[425970516,1782061851000,-500.0,0.00013107,2]
[425970501,1782061851000,-167.61,0.00012329,2]
[425970505,1782061851000,-344.83505209,0.00012575,2]
[425970510,1782061851000,-500.0,0.0001272,2]
[425970508,1782061851000,-302.06055743,0.00012649,2]
[425970507,1782061851000,-574.14238118,0.00012649,2]
[425970509,1782061851000,-250.0,0.00012683,2]
[425970506,1782061851000,-250.0,0.00012649,2]
[425970502,1782061851000,-13949.04756009,0.00012432,2]
[425970512,1782061851000,-480.32,0.00012815,2]
[425970522,1782061851000,-160.0,0.00013226,2]
[425970514,1782061851000,-9515.25152501,0.00013,5]
[425970511,1782061851000,-255.0,0.00012733,2]
[425970504,1782061851000,-480.32,0.00012517,2]
[425970539,1782061851000,-500.0,0.00013698,2]
[425970536,1782061851000,-550.72092856,0.00013698,2]
[425970550,1782061851000,-357.8107871,0.00013698,2]
[425970575,1782061851000,-179.38868994,0.000149,2]
[425970573,1782061851000,-250.0,0.00014873,2]
[425970574,1782061851000,-527.71,0.00014898,2]
[425970579,1782061851000,-196.75171301,0.000149,2]
[425970580,1782061851000,-179.38920481,0.000149,2]
[425970582,1782061851000,-1100.0,0.000149,5]
[425970583,1782061851000,-291.99293023,0.00014908,2]
[425970585,1782061851000,-560.31805253,0.0001499,2]
[425970587,1782061851000,-500.0,0.00014999,2]
[425970584,1782061851000,-13858.0713622,0.00014989,2]
[425970581,1782061851000,-3206.23114603,0.000149,2]
[425970571,1782061851000,-800.0,0.000148,5]